bitfinex/quotes_ETHUSD_20251220
["timestamp","ask_amount","ask_price","bid_price","bid_amount"]
[1766266971420,11.34530578,2987.0,2986.5,1.102]
[1766266973120,0.9688,2987.0,2986.5,1.102]
[1766266974422,4.61316762,2987.1,2986.5,1.102]
[1766266974617,5.58196762,2987.1,2986.5,1.102]
[1766266974834,0.002,2987.0,2986.5,1.102]
[1766266989435,0.002,2987.0,2986.5,0.9052]
[1766266989736,0.002,2987.0,2986.7,0.9889]
[1766267006689,0.002,2987.0,2986.7,1.1857]
[1766267010168,0.002,2987.0,2986.7,0.9889]
[1766267010563,0.002,2987.0,2986.7,1.1857]
[1766267014946,10.38758095,2986.8,2985.9,0.001]
[1766267015285,10.38758095,2986.8,2985.1,0.001]
[1766267015286,0.3726,2985.9,2985.3,1.2774]
[1766267015468,1.07501192,2985.8,2985.4,0.9115]
[1766267015642,4.16071129,2985.9,2985.4,0.9115]
[1766267015847,0.9115,2985.7,2985.4,0.9115]
[1766267016484,0.9115,2985.7,2984.7,0.439]
[1766267016861,0.9115,2985.7,2984.7,1.3505]
[1766267017579,0.9115,2985.7,2984.8,1.76593937]
[1766267017778,4.26090149,2985.7,2984.9,0.31164394]
[1766267018769,4.26090149,2985.7,2985.0,1.2764]
[1766267018973,4.26090149,2985.7,2985.0,0.9115]
[1766267019284,4.26090149,2985.7,2985.3,0.3649]
[1766267019483,4.26090149,2985.7,2985.3,1.2764]
[1766267020984,4.26090149,2985.7,2985.4,0.9115]
[1766267024085,3.34940149,2985.7,2985.4,0.9115]
[1766267024385,0.9115,2985.6,2985.4,0.9115]
[1766267027089,4.26098568,2985.6,2985.3,0.3649]
[1766267027494,3.34948568,2985.6,2985.3,0.3649]
[1766267027671,0.3649,2985.5,2985.3,0.3649]
[1766267029063,0.3649,2985.5,2985.3,1.2764]
[1766267029486,0.3649,2985.5,2985.3,0.3649]
[1766267029862,3.34948568,2985.6,2985.3,0.3649]
[1766267030087,0.439,2985.5,2985.3,0.3649]
[1766267031185,3.35129832,2985.7,2985.3,0.3649]
[1766267031594,0.439,2985.6,2985.3,1.2764]
[1766267034984,3.7884915,2985.6,2985.3,1.2764]
[1766267036502,3.7884915,2985.6,2985.3,0.9115]
[1766267037214,3.35129832,2985.7,2985.3,0.9115]
[1766267041902,3.35129832,2985.7,2985.3,0.9125]
[1766267043585,3.35129832,2985.7,2985.3,1.1325]
[1766267043794,0.9115,2986.1,2985.4,0.218]
[1766267043988,3.34873752,2986.2,2985.7,1.1295]
[1766267044409,6.69747504,2986.2,2985.7,1.1295]
[1766267049187,6.69947504,2986.2,2985.7,1.1295]
[1766267049513,7.54551254,2986.2,2985.7,1.1295]
[1766267051019,7.88551254,2986.2,2985.7,1.1295]
[1766267054199,8.87001254,2986.2,2985.7,1.1295]
[1766267059820,1.3245,2986.1,2985.6,0.001]
[1766267060319,7.54551254,2986.2,2985.6,0.001]
[1766267060524,1.3245,2986.0,2985.6,0.001]
[1766267062522,3.34907398,2985.9,2985.6,0.001]
[1766267062823,3.71137398,2985.9,2985.6,0.001]
[1766267063418,3.34907398,2985.9,2985.6,0.001]
[1766267064823,3.34907398,2985.9,2985.6,0.9675]
[1766267068429,3.34896182,2986.0,2985.6,0.9675]
[1766267068617,4.61176182,2986.0,2985.6,0.001]
[1766267073030,4.61376182,2986.0,2985.6,0.001]
[1766267074956,4.62266182,2986.0,2985.6,0.001]
[1766267077131,3.72030961,2985.9,2985.6,0.001]
[1766267081446,3.72230961,2985.9,2985.6,0.001]
[1766267081817,3.35110961,2985.9,2985.6,0.001]
[1766267098647,13.73590718,2985.9,2985.6,0.001]
[1766267108476,10.38479757,2985.7,2985.3,0.001]
[1766267108780,11.73349757,2985.7,2985.3,0.001]
[1766267110145,0.3707,2985.6,2985.3,0.001]
[1766267111275,1.3487,2985.6,2985.3,0.001]
[1766267111481,2.70649139,2985.6,2985.3,0.001]
[1766267117794,6.05590437,2985.6,2985.3,0.001]
[1766267118177,1.35779139,2985.6,2985.3,0.001]
[1766267123397,10.38479757,2985.5,2985.3,0.001]
[1766267124701,10.38479757,2985.5,2984.9,0.439]
[1766267124702,11.67839757,2985.5,2984.9,0.8243]
[1766267124904,15.02793245,2985.5,2985.0,0.3853]
[1766267125196,13.73433245,2985.5,2985.0,0.3853]
[1766267125374,13.73433245,2985.5,2985.0,0.3833]
[1766267125579,10.38479757,2985.5,2985.1,0.002]
[1766267125777,10.3891971,2985.4,2985.1,0.3853]
[1766267126476,10.3891971,2985.4,2985.3,0.001]
[1766267126779,10.3891971,2985.4,2985.1,0.3853]
[1766267129401,4.64305688,2985.6,2985.1,0.3853]
[1766267131588,5.1480445,2985.6,2985.1,0.3853]
[1766267133702,5.1500445,2985.6,2985.1,0.3853]
[1766267134002,5.1500445,2985.6,2985.1,0.3833]
[1766267139184,5.1500445,2985.6,2985.1,0.3853]
[1766267142809,5.1500445,2985.6,2985.1,0.3833]
[1766267145514,5.1500445,2985.6,2985.0,0.003]
[1766267145994,5.1500445,2985.6,2985.0,0.3863]
[1766267146199,5.1500445,2985.6,2985.1,0.002]
[1766267146501,5.1500445,2985.6,2985.1,0.3853]
[1766267154321,4.64505688,2985.6,2985.1,0.3853]
[1766267159809,0.439,2985.5,2985.1,0.3853]
[1766267162332,4.64505688,2985.6,2985.1,0.3853]
[1766267162629,5.52305688,2985.6,2985.1,0.3853]
[1766267175747,4.64505688,2985.6,2985.1,0.3853]
[1766267176048,0.878,2985.5,2985.1,0.3853]
[1766267177954,0.878,2985.5,2985.1,0.3833]
[1766267178451,0.878,2985.5,2985.0,0.001]
[1766267178844,0.878,2985.5,2985.0,0.3843]
[1766267182156,4.64505688,2985.6,2985.0,0.3843]
[1766267182454,4.64505688,2985.6,2985.0,1.2633]
[1766267184358,4.64505688,2985.6,2985.0,1.2653]
[1766267184854,6.70096618,2985.6,2985.0,0.88]
[1766267185064,1.2868,2985.2,2984.5,0.001]
[1766267185244,0.9278,2985.0,2984.5,0.001]
[1766267185629,1.2868,2984.9,2984.5,0.001]
[1766267186257,2.29336447,2984.9,2984.5,0.001]
[1766267188563,0.359,2984.7,2984.5,0.001]
[1766267188732,4.35678224,2984.9,2984.5,0.001]
[1766267188932,0.9278,2984.7,2984.5,0.001]
[1766267189274,1.2868,2984.7,2984.5,0.001]
[1766267192556,4.63722127,2984.7,2984.5,0.001]
[1766267192969,1.00664553,2984.6,2984.5,0.001]
[1766267201993,1.2868,2984.7,2984.5,0.001]
[1766267202471,1.00664553,2984.7,2984.5,0.001]
[1766267202657,3.35035487,2984.8,2984.5,0.001]
[1766267203198,4.3570004,2984.8,2984.5,0.001]
[1766267205293,1.00664553,2984.8,2984.5,0.001]
[1766267207471,1.92817573,2985.6,2984.6,0.002]
[1766267207472,0.3726,2985.5,2984.6,0.002]
[1766267207670,3.34966373,2985.4,2984.7,0.002]
[1766267207966,4.26956373,2985.4,2984.8,0.441]
[1766267208171,4.64216373,2985.4,2984.8,0.441]
[1766267208357,4.64216373,2985.4,2984.8,1.44750031]
[1766267210288,1.2925,2985.4,2984.8,1.44750031]
[1766267211401,1.2925,2985.4,2984.9,0.002]
[1766267211808,1.2925,2985.4,2984.9,1.00848343]
[1766267212293,1.2925,2985.4,2984.9,0.002]
[1766267212610,1.2925,2985.4,2985.0,1.00643278]
[1766267215295,1.2945,2985.4,2985.0,1.00643278]
[1766267216102,0.002,2985.4,2985.0,1.00643278]
[1766267218799,1.2945,2985.4,2985.0,1.00643278]
[1766267219902,0.3746,2985.4,2984.8,0.439]
[1766267220120,0.9199,2985.3,2984.8,0.439]
[1766267220300,0.9199,2985.3,2984.9,1.00643278]
[1766267229792,0.9199,2985.3,2984.8,0.442]
[1766267229992,0.9199,2985.3,2984.8,1.44843278]
[1766267232433,0.3746,2985.4,2984.8,1.44843278]
[1766267232638,14.54044424,2985.5,2984.8,1.44643278]
[1766267232829,13.61724424,2985.5,2984.9,0.3399]
[1766267233034,0.9232,2985.4,2984.9,0.3399]
[1766267237017,1.2625,2985.4,2984.9,0.3399]
[1766267237441,1.2625,2985.4,2984.9,1.34633278]
[1766267239238,1.2645,2985.4,2984.9,1.34633278]
[1766267247142,1.2645,2985.4,2984.9,1.34733278]
[1766267258155,1.2645,2985.4,2984.9,1.35263278]
[1766267263466,4.27485387,2985.4,2984.9,1.00743278]
[1766267263765,4.27485387,2985.4,2984.9,0.3462]
[1766267278275,0.9252,2985.4,2984.9,0.3462]
[1766267279178,4.2748638,2985.4,2984.9,0.3462]
[1766267281786,4.6279638,2985.4,2984.9,0.3462]
[1766267285705,0.9889,2984.9,2984.3,0.001]
[1766267285994,0.9889,2984.9,2983.8,0.601]
[1766267285995,1.34,2984.2,2983.9,0.102]
[1766267286216,10.38892864,2984.4,2983.9,0.102]
[1766267286487,0.9889,2984.1,2983.9,0.102]
[1766267286673,1.941,2984.1,2983.9,0.102]
[1766267286867,1.34,2984.1,2983.9,0.102]
[1766267287664,0.9889,2984.6,2983.9,0.102]
[1766267287864,4.25045259,2985.4,2983.9,0.541]
[1766267287865,0.439,2984.9,2983.9,0.541]
[1766267288067,0.601,2984.7,2983.9,2.08934568]
[1766267288267,0.439,2984.9,2984.0,1.00672323]
[1766267288464,0.439,2984.9,2983.9,0.541]
[1766267288465,0.3511,2984.7,2983.9,0.541]
[1766267288690,0.3511,2984.5,2983.9,0.541]
[1766267288991,1.34,2984.4,2983.9,1.54782797]
[1766267289196,1.34,2984.4,2983.9,1.54982797]
[1766267290692,3.35054774,2984.6,2983.9,1.54982797]
[1766267290906,1.34,2984.3,2983.9,1.54982797]
[1766267294214,0.9889,2984.1,2983.9,1.11082797]
[1766267294507,1.34,2984.1,2983.9,0.104]
[1766267296595,3.35089377,2984.3,2983.8,1.607855]
[1766267296798,1.34,2984.0,2983.8,1.607855]
[1766267297000,1.34,2984.0,2983.9,0.002]
[1766267297302,1.34,2984.0,2983.8,0.601]
[1766267303110,1.34,2984.0,2983.8,0.6]
[1766267303302,0.3511,2983.9,2983.7,0.601]
[1766267303491,1.34,2983.9,2983.7,0.601]
[1766267303686,1.34,2983.9,2983.8,0.002]
[1766267305908,1.34,2983.9,2983.7,0.601]
[1766267306104,1.518,2983.9,2983.7,0.601]
[1766267306488,1.34,2983.8,2983.5,1.00693611]
[1766267307621,1.34,2983.8,2983.3,0.3557]
[1766267307922,1.34,2983.8,2983.3,1.36263611]
[1766267311095,1.34,2983.8,2983.5,0.002]
[1766267311317,2.86707105,2983.8,2983.5,0.002]
[1766267311798,1.3266,2983.6,2983.3,1.00693611]
[1766267312028,1.3266,2983.5,2983.3,1.00693611]
[1766267315118,1.3266,2983.5,2982.9,0.4416]
[1766267315320,1.3266,2983.5,2983.0,1.00705103]
[1766267315519,1.3266,2983.5,2983.0,1.36275103]
[1766267315720,1.3266,2983.5,2983.0,1.54318613]
[1766267315919,1.3266,2983.5,2983.0,0.5361351]
[1766267316127,10.40253759,2983.3,2983.1,1.00705103]
[1766267316334,11.68223759,2983.3,2982.7,0.602]
[1766267316651,11.68223759,2983.3,2982.7,1.60905103]
[1766267317006,11.68223759,2983.3,2982.7,0.602]
[1766267317307,0.18331847,2983.2,2982.7,0.602]
[1766267317534,1.11151847,2983.2,2982.7,0.602]
[1766267321136,0.3515,2983.1,2982.7,0.602]
[1766267321633,1.2797,2983.1,2982.7,0.602]
[1766267322504,2.2869167,2983.1,2982.7,0.602]
[1766267322901,1.2797,2983.0,2982.7,0.602]
[1766267324338,1.2797,2982.9,2982.7,0.602]
[1766267326843,0.602,2982.8,2982.7,0.602]
[1766267331334,1.2797,2983.1,2982.7,0.602]
[1766267331535,0.602,2983.0,2982.7,0.602]
[1766267341658,1.2797,2983.1,2982.7,0.602]
[1766267343129,0.441,2983.2,2982.7,0.7717]
[1766267343857,1.7207,2983.2,2982.7,0.7717]
[1766267344065,0.001,2983.2,2982.7,0.87744]
[1766267344270,2.72686936,2983.6,2982.7,11.27997759]
[1766267344565,2.72686936,2983.6,2983.0,0.5244]
[1766267344936,2.72686936,2983.6,2982.7,1.31744]
[1766267345137,1.3108,2983.5,2982.8,0.46721544]
[1766267345335,1.3108,2983.5,2982.8,0.5244]
[1766267345564,1.3108,2983.5,2982.9,0.1697]
[1766267347069,0.97,2983.4,2982.9,0.1697]
[1766267347470,1.3108,2983.4,2982.9,0.1697]
[1766267350774,1.3108,2983.4,2982.9,0.1717]
[1766267351164,1.3118,2983.4,2982.9,0.5264]
[1766267351347,1.3118,2983.4,2982.9,1.75099925]
[1766267353156,1.3118,2983.4,2982.9,1.22659925]
[1766267353357,1.3118,2983.4,2982.9,0.002]
[1766267358951,1.3118,2983.4,2982.9,0.5264]
[1766267366393,0.001,2983.4,2983.0,0.5244]
[1766267368458,0.44,2983.6,2983.1,0.1697]
[1766267368665,0.44,2983.6,2983.1,0.5234]
[1766267369192,1.7673,2983.6,2983.1,0.5234]
[1766267372301,1.3273,2983.6,2983.1,0.5234]
[1766267373319,1.3283,2983.6,2983.1,0.5234]
[1766267376565,3.35227927,2984.0,2983.4,0.5224]
[1766267376566,0.44,2983.8,2983.4,0.5224]
[1766267376976,0.44,2983.8,2983.2,0.3537]
[1766267377181,1.6876,2983.8,2983.2,0.5224]
[1766267377378,1.2476,2983.8,2983.2,0.5224]
[1766267377675,0.44,2983.9,2983.4,0.3537]
[1766267377881,0.44,2983.9,2983.5,0.1687]
[1766267380581,0.441,2983.9,2983.5,0.1687]
[1766267381300,0.441,2983.9,2983.4,0.3537]
[1766267382400,0.001,2983.9,2983.4,0.3537]
[1766267382592,0.441,2983.9,2983.4,0.5224]
[1766267383998,0.001,2983.9,2983.4,0.5224]
[1766267384202,0.001,2983.9,2983.3,3.35195733]
[1766267384381,0.001,2984.0,2983.6,0.5214]
[1766267384572,0.001,2984.0,2983.7,0.1677]
[1766267384888,0.001,2984.0,2983.7,0.5214]
[1766267391295,0.001,2984.0,2983.7,0.1677]
[1766267393192,0.001,2984.0,2983.5,0.002]
[1766267393386,0.001,2984.0,2983.5,0.5234]
[1766267400206,1.2486,2984.0,2983.5,0.5234]
[1766267404028,0.3391,2983.8,2983.5,0.002]
[1766267404327,0.3391,2983.8,2983.1,0.44]
[1766267405530,1.3155,2983.7,2983.1,0.44]
[1766267405711,1.3155,2983.7,2983.1,1.3428396]
[1766267408623,1.3155,2983.7,2983.5,0.002]
[1766267411428,1.7565,2984.0,2983.5,0.5254]
[1766267412839,1.7565,2984.0,2983.5,0.002]
[1766267420648,1.3155,2983.9,2983.5,0.002]
[1766267421239,0.3492,2983.8,2983.5,0.002]
[1766267421429,1.3155,2983.8,2983.5,0.002]
[1766267422418,0.17565,2983.8,2983.5,0.002]
[1766267422620,1.3155,2983.7,2983.1,0.44]
[1766267422947,0.9781,2983.7,2983.1,0.9654]
[1766267423330,0.9781,2983.7,2983.2,0.5254]
[1766267424749,1.3177,2983.7,2983.2,0.5254]
[1766267426352,0.441,2984.0,2983.3,0.1697]
[1766267426519,0.441,2984.0,2983.5,0.5254]
[1766267426817,1.7587,2984.0,2983.5,0.5254]
[1766267427953,0.441,2984.0,2983.1,3.79219443]
[1766267428126,1.3177,2983.9,2983.2,0.90481944]
[1766267428451,1.3177,2983.8,2983.2,0.90481944]
[1766267428922,1.3177,2983.8,2983.1,0.44]
[1766267429121,0.9781,2983.9,2983.1,0.44]
[1766267429344,0.9781,2983.7,2983.1,0.44]
[1766267429649,0.9781,2983.6,2983.1,0.44]
[1766267430225,1.3177,2983.5,2983.1,0.44]
[1766267430516,0.9781,2983.4,2983.1,0.44]
[1766267434545,1.3267,2983.4,2983.1,0.44]
[1766267435555,13.75440273,2983.8,2983.1,0.44]
[1766267435556,1.2645,2983.7,2983.1,0.44]
[1766267435723,0.3486,2983.6,2983.1,0.44]
[1766267435920,1.2645,2983.4,2983.1,0.44]
[1766267437933,1.2645,2983.4,2983.0,0.002]
[1766267442262,0.3486,2983.4,2983.0,0.002]
[1766267442457,0.9159,2983.3,2983.0,0.002]
[1766267445376,1.2645,2983.3,2983.0,0.002]
[1766267446472,0.001,2983.5,2983.0,0.002]
[1766267446672,0.38026592,2983.5,2983.0,0.002]
[1766267446974,1.2645,2983.4,2983.0,0.002]
[1766267447138,0.9159,2983.4,2983.0,0.002]
[1766267447470,1.2645,2983.3,2983.0,0.002]
[1766267447963,0.38026592,2983.5,2983.0,0.002]
[1766267448162,1.2645,2983.2,2983.0,0.002]
[1766267449246,0.41719251,2983.4,2982.8,0.44]
[1766267449452,0.3486,2983.2,2982.7,0.602]
[1766267449652,0.9159,2982.9,2982.7,0.602]
[1766267449853,1.2645,2982.9,2982.7,0.602]
[1766267450866,3.3518905,2983.4,2982.6,0.002]
[1766267450867,3.79217126,2983.2,2982.6,0.002]
[1766267451068,1.2645,2982.9,2982.6,0.002]
[1766267455072,0.9159,2982.9,2982.6,0.002]
[1766267456680,0.3486,2983.1,2982.6,0.002]
[1766267456887,1.2645,2983.1,2982.6,0.002]
[1766267457046,0.9159,2983.0,2982.6,0.002]
[1766267460345,1.2645,2983.0,2982.6,0.002]
[1766267461180,0.001,2983.1,2982.9,10.405216]
[1766267461476,1.2655,2983.5,2983.0,0.3709]
[1766267461688,0.9169,2983.5,2983.0,0.5867]
[1766267461859,0.9169,2983.5,2983.0,0.9576]
[1766267462257,0.9169,2983.5,2983.0,2.0938816]
[1766267463182,0.001,2983.5,2983.1,0.9576]
[1766267482954,0.001,2983.5,2983.1,0.3709]
[1766267483076,1.3258,2983.5,2983.1,0.3709]
[1766267484611,1.3258,2983.5,2983.0,10.407216]
[1766267486296,1.3258,2983.5,2983.0,10.756816]
[1766267491025,1.44717951,2983.7,2983.2,10.405216]
[1766267491026,1.00717951,2983.7,2983.2,10.405216]
[1766267491311,0.001,2983.8,2983.4,10.405216]
[1766267491882,0.001,2983.5,2983.4,10.405216]
[1766267492079,0.001,2983.5,2983.3,0.9353]
[1766267493110,0.001,2983.5,2983.3,11.3337751]
[1766267495415,0.001,2983.5,2983.3,0.9353]
[1766267508224,0.001,2983.5,2983.3,0.9373]
[1766267513927,0.001,2983.5,2983.3,0.002]
[1766267514636,1.3192,2983.5,2983.3,0.002]
[1766267517526,0.001,2983.5,2983.3,0.002]
[1766267520641,0.441,2983.8,2983.3,0.3766]
[1766267520852,0.95214498,2983.8,2983.3,0.3766]
[1766267521321,0.441,2983.8,2983.3,0.3766]
[1766267521518,0.441,2983.8,2983.4,0.3746]
[1766267521721,0.441,2983.8,2983.5,0.3746]
[1766267521926,0.001,2983.8,2983.5,0.3746]
[1766267524258,0.441,2984.0,2983.6,0.9603]
[1766267524614,0.001,2983.8,2983.6,0.9603]
[1766267533064,0.001,2983.8,2983.6,0.3746]
[1766267535776,0.9544,2983.8,2983.5,0.002]
[1766267537382,1.3254,2983.8,2983.5,0.002]
[1766267540591,0.9544,2983.8,2983.5,0.002]
[1766267540780,0.001,2983.8,2983.5,0.002]
[1766267549929,0.9138,2983.8,2983.5,0.002]
[1766267550124,1.2694,2983.8,2983.5,0.002]
[1766267562970,1.2694,2983.8,2983.3,0.002]
[1766267562971,0.9883,2983.6,2983.3,0.002]
[1766267563659,0.3468,2983.7,2983.3,0.002]
[1766267566083,0.3468,2983.7,2983.5,0.002]
[1766267566579,0.001,2983.8,2983.5,0.002]
[1766267566875,0.001,2983.8,2983.5,0.9598]
[1766267571167,0.001,2983.8,2983.5,0.3741]
[1766267574403,0.001,2984.0,2983.5,1.51016211]
[1766267574569,1.3361,2984.0,2983.5,11.53688317]
[1766267575264,1.3361,2984.0,2983.5,12.12258317]
[1766267579471,1.3361,2984.0,2983.5,12.49468317]
[1766267579671,1.3361,2984.0,2983.6,0.98255775]
[1766267580710,0.001,2984.0,2983.6,1.35465775]
[1766267580899,0.001,2984.0,2983.6,1.94035775]
[1766267581075,0.001,2984.0,2983.7,0.9578]
[1766267585316,0.001,2984.0,2983.7,0.3721]
[1766267603234,0.001,2984.0,2983.7,0.9578]
[1766267606031,1.00796315,2984.3,2983.9,0.3421]
[1766267606230,0.001,2984.3,2984.0,0.3421]
[1766267606801,1.3364,2984.3,2983.8,0.5847]
[1766267607028,0.001,2984.3,2983.9,0.9268]
[1766267612337,0.9671,2984.3,2983.7,0.44]
[1766267612638,1.3354,2984.1,2983.7,0.44]
[1766267612940,1.3354,2984.1,2983.7,1.71746778]
[1766267619655,1.3354,2984.1,2983.7,0.44]
[1766267621057,0.9519,2984.0,2983.7,0.44]
[1766267621247,1.2932,2983.9,2983.7,0.44]
[1766267623258,1.2932,2983.9,2983.6,0.002]
[1766267634068,0.9519,2983.8,2983.6,0.002]
[1766267634363,1.2932,2983.8,2983.6,0.002]
[1766267636872,0.001,2984.1,2983.6,0.002]
[1766267637077,1.2932,2984.0,2983.6,0.002]
[1766267644921,0.44,2983.9,2983.3,0.002]
[1766267645069,0.9046,2983.6,2983.3,0.002]
[1766267645587,1.2448,2983.6,2983.5,0.002]
[1766267646195,1.6181,2983.6,2983.5,0.002]
[1766267662917,0.7135,2983.6,2983.3,0.002]
[1766267663110,0.9479,2983.5,2983.3,0.002]
[1766267663624,0.9367,2983.4,2983.3,0.002]
[1766267675339,1.9364,2983.4,2983.3,0.002]
[1766267690569,1.9364,2983.4,2983.0,0.3747]
[1766267690778,1.9364,2983.4,2983.0,0.002]
[1766267690953,0.3556,2983.4,2983.0,0.002]
[1766267691150,2.00684569,2983.3,2983.0,0.002]
[1766267691661,0.9997,2983.3,2983.0,0.002]
[1766267691866,1.00714569,2983.2,2983.0,0.002]
[1766267692163,0.9997,2983.1,2982.8,1.152]
[1766267692532,0.9997,2983.1,2982.6,1.3274]
[1766267692832,0.9997,2983.1,2982.7,0.3727]
[1766267693339,1.00729787,2983.0,2982.7,0.3727]
[1766267693857,0.9997,2983.1,2982.7,0.3727]
[1766267694159,2.00699787,2983.1,2982.7,0.3727]
[1766267700961,0.9997,2983.0,2982.6,0.002]
[1766267701161,0.9997,2982.8,2982.6,0.002]
[1766267702658,1.36290125,2982.9,2982.6,0.002]
[1766267703055,2.36260125,2982.9,2982.6,0.002]
[1766267706870,1.3553,2982.9,2982.6,0.002]
[1766267709470,0.983,2982.8,2982.6,0.002]
[1766267715876,0.983,2983.0,2982.6,0.002]
[1766267722770,0.983,2983.0,2982.6,0.3633]
[1766267726389,0.984,2983.0,2982.6,0.3633]
[1766267728265,0.001,2983.0,2982.6,0.9618]
[1766267728465,0.001,2983.0,2982.6,1.3231]
[1766267732399,0.9898,2983.0,2982.6,1.3231]
[1766267733107,0.001,2983.0,2982.6,0.3633]
[1766267733278,1.00730125,2983.3,2982.9,0.3599]
[1766267733597,1.44730125,2983.3,2982.9,0.3599]
[1766267733990,2.43610125,2983.3,2982.9,0.3599]
[1766267734799,0.001,2983.0,2982.8,10.40556875]
[1766267734997,0.001,2983.0,2982.6,0.9135]
[1766267734998,0.001,2983.0,2982.7,0.347]
[1766267735202,0.001,2983.0,2982.7,1.84908873]
[1766267736797,0.9886,2983.3,2982.8,1.3455]
[1766267736998,0.9886,2983.2,2982.8,0.347]
[1766267742214,0.9886,2983.1,2982.6,1.3475]
[1766267743420,0.9896,2983.1,2982.6,1.3475]
[1766267743612,0.9896,2983.1,2982.7,0.81723906]
[1766267744379,0.9896,2983.1,2982.7,0.347]
[1766267759525,0.001,2983.1,2982.7,1.3455]
[1766267760631,0.9896,2983.1,2982.6,0.002]
[1766267760851,0.9896,2983.1,2982.6,1.3475]
[1766267761010,0.9896,2983.1,2982.7,0.347]
[1766267767733,0.9896,2983.1,2982.6,0.002]
[1766267768112,0.9896,2983.1,2982.6,0.3448]
[1766267768313,0.9896,2983.1,2982.6,0.9799]
[1766267768514,0.9896,2983.1,2982.7,0.3428]
[1766267772742,0.9166,2983.0,2982.6,0.3448]
[1766267777842,0.9166,2982.8,2982.6,0.002]
[1766267778210,0.9166,2982.6,2982.3,0.002]
[1766267778436,0.9166,2982.6,2982.1,0.002]
[1766267778613,1.1283,2982.5,2982.1,0.002]
[1766267781223,9.54304769,2982.7,2981.7,0.3448]
[1766267781535,9.54304769,2982.7,2981.7,1.3227]
[1766267781536,1.00752114,2982.4,2981.7,1.3227]
[1766267782213,1.00752114,2982.4,2981.7,0.002]
[1766267782412,1.00752114,2982.4,2981.8,1.3207]
[1766267783044,1.00752114,2982.4,2981.8,0.9779]
[1766267783220,1.00752114,2982.4,2981.9,0.3428]
[1766267783426,1.00752114,2982.4,2981.9,1.3207]
[1766267783746,1.53898469,2982.4,2981.9,1.3207]
[1766267784242,1.53898469,2982.4,2982.0,0.002]
[1766267784648,4.89202118,2982.4,2981.7,0.002]
[1766267786252,4.89202118,2982.4,2981.7,1.3227]
[1766267786737,0.44,2982.3,2981.7,1.3227]
[1766267787046,0.53320212,2982.2,2981.7,1.3227]
[1766267792746,0.53320212,2982.2,2981.7,0.3448]
[1766267793429,0.44,2982.3,2981.7,0.3448]
[1766267794049,0.44,2982.3,2981.7,1.2924]
[1766267794754,0.44,2982.3,2981.8,1.3296]
[1766267794926,0.44,2982.3,2981.9,0.3521]
[1766267795250,0.44,2982.3,2981.9,1.3296]
[1766267796462,0.63800287,2982.3,2981.9,1.3296]
[1766267796952,0.97146355,2982.4,2981.9,0.9775]
[1766267797142,0.441,2982.5,2982.0,1.3296]
[1766267797344,1.44852791,2982.5,2982.0,1.3296]
[1766267797558,0.441,2982.5,2982.0,1.3296]
[1766267801159,0.441,2982.5,2981.9,1.3296]
[1766267801461,0.441,2982.5,2982.1,0.9775]
[1766267801642,0.441,2982.5,2982.1,1.3296]
[1766267802250,0.001,2982.5,2982.1,1.3296]
[1766267802453,0.001,2982.5,2981.9,3.3535648]
[1766267802632,0.001,2982.5,2982.1,0.9775]
[1766267802833,0.001,2982.5,2982.3,1.3296]
[1766267803843,0.001,2982.5,2982.3,0.9775]
[1766267804161,1.447467,2982.8,2982.4,1.3296]
[1766267806250,1.007467,2982.8,2982.4,1.3296]
[1766267806450,0.44,2982.9,2982.4,1.3296]
[1766267806950,0.81932442,2982.9,2982.4,1.3296]
[1766267807769,1.82675421,2982.9,2982.4,1.3296]
[1766267808853,0.001,2982.8,2982.4,1.3296]
[1766267809044,0.001,2982.8,2982.2,1.3296]
[1766267809445,0.001,2982.8,2982.3,0.3521]
[1766267809642,0.001,2982.8,2982.5,0.3521]
[1766267809847,0.001,2982.8,2982.5,1.3296]
[1766267821172,0.001,2982.8,2982.3,1.3296]
[1766267824464,0.001,2982.8,2982.3,1.2796]
[1766267824778,0.001,2982.8,2982.1,12.45841951]
[1766267824991,0.001,2982.8,2982.5,0.002]
[1766267828887,1.00740949,2982.7,2982.5,0.002]
[1766267839415,1.00740949,2982.7,2982.6,1.2781]
[1766267839616,0.001,2982.8,2982.6,1.2781]
[1766267839820,1.00840949,2982.8,2982.5,0.002]
[1766267839996,1.48849009,2982.8,2982.5,0.002]
[1766267840941,1.48849009,2982.8,2982.5,1.2801]
[1766267841081,1.00840949,2982.8,2982.5,1.2801]
[1766267841278,1.00840949,2982.8,2982.6,1.2781]
[1766267841799,0.001,2982.8,2982.6,1.2781]
[1766267853301,0.001,2983.1,2982.6,0.9985]
[1766267853502,0.441,2983.1,2982.8,1.363]
[1766267854102,3.79322333,2983.1,2982.8,1.363]
[1766267854339,0.001,2983.1,2982.8,1.363]
[1766267854649,0.001,2983.1,2982.8,0.3697]
[1766267854841,0.001,2983.1,2982.9,1.3301]
[1766267881252,0.001,2983.1,2982.8,0.002]
[1766267887253,0.001,2983.1,2982.8,1.3593]
[1766267911632,0.001,2983.1,2982.8,0.002]
[1766267917332,0.001,2983.1,2982.8,0.3758]